Cogmind - Beta 15 @@@ ROGUE MODE // 2025.08.11 @ 12:19:17 Player: Lordlorte Result: Destroyed by OC-R1M(R) with Subdweller Machine Gun Performance ------------- Evolutions (0) 0 Regions Visited (2) 400 Robots Destroyed (20) 100 Value Destroyed (479) 479 Prototype IDs (2) 40 Alien Tech Used (0) 0 Bonus (0) 0 TOTAL SCORE: 1019 Bonus ------- None Cogmind --------- Core Integrity 0/250 Matter 270/300 Energy 100/100 System Corruption 0% Temperature Cool (0) Movement Rolling (95) Ox1 Location -10/Subcaves Parts ------- > --- POWER (1) -------- (None) > --- PROPULSION (2) --- Wheel > --- UTILITY (2) ------ Medium Storage Unit > --- WEAPON (2) ------- Light Assault Rifle > --- INVENTORY (10) --- Light Ion Engine Light Ion Engine Wheel Large Matter Pod (150) Light Assault Rifle Light Assault Rifle Barrage Gun Barrage Gun Hammer Peak State ------------ > --- POWER ------------ Light Nuclear Core > --- PROPULSION ------- Wheel Compact Wheel > --- UTILITY ---------- Medium Storage Unit Tractor Beam > --- WEAPON ----------- Light Assault Rifle Light Assault Rifle > --- INVENTORY -------- Light Ion Engine Light Ion Engine Small Storage Unit Small Matter Pod EM Pulse Gun Small Laser Particle Gun Beam Cannon Light Assault Rifle [Rating: 10] Favorites ----------- Power Light Nuclear Core Engine Light Ion Engine Power Core Light Nuclear Core Propulsion Wheel Wheel Wheel Utility Medium Storage Unit Device Tractor Beam Storage Medium Storage Unit Processor Transport Network Coupler Weapon Light Assault Rifle Energy Gun EM Pulse Gun Ballistic Gun Light Assault Rifle Ballistic Cannon Light Cannon Impact Weapon Hammer Build | -11 -10 -10 ------- Run | Yrd Mat Sub Slots Evolved . | . . . Power . | . . . Propulsion . | . . . Utility . | . . . Weapon . | . . . Parts Attached 19 | 7 11 1 Power 3 | 1 2 . Engine 2 | 1 1 . Core 1 | . 1 . Reactor . | . . . Propulsion 4 | 2 1 1 Treads . | . . . Leg . | . . . Wheel 4 | 2 1 1 Hover . | . . . Flight . | . . . Utility 5 | 2 3 . Device 2 | 1 1 . Storage 2 | 1 1 . Processor 1 | . 1 . Hackware . | . . . Protection . | . . . Artifact . | . . . Weapon 7 | 2 5 . Energy Gun 1 | 1 . . Energy Cannon . | . . . Ballistic Gun 4 | 1 3 . Ballistic Cannon 1 | . 1 . Launcher . | . . . Special Weapon . | . . . Impact Weapon 1 | . 1 . Slashing Weapon . | . . . Piercing Weapon . | . . . Special Melee Weapon . | . . . Unidentified Prototypes . | . . . Parts Lost 7 | . 2 5 Power 1 | . . 1 Propulsion 2 | . . 2 Utility 2 | . 1 1 Weapon 2 | . 1 1 Highest Loss Streak 5 | . 2 5 To Critical Strikes . | . . . Average Backups 8 | 1 8 9 Power 1 | . 1 2 Propulsion . | . . 1 Utility 1 | . 1 1 Weapon 4 | . 4 5 Tool/Special . | . . . Unused Backups 16 | . 6 10 Power 2 | . . 2 Propulsion 1 | . . 1 Utility 4 | . 3 1 Weapon 9 | . 3 6 Tool/Special . | . . . Average Slot Usage (%) 95 | . 97 86 Engine 4 | . 2 13 Core 9 | . 11 . Wheel 26 | . 28 21 Device 9 | . 9 11 Storage 14 | . 14 14 Processor 2 | . 3 . Energy Gun 1 | . 1 . Ballistic Gun 21 | . 22 14 Ballistic Cannon 3 | . 1 12 Peak Build Rating 10 | 7 10 8 Average Rating 8 | 5 9 7 On Entrance 5 | . 7 8 Naked Turns . | . . . Heaviest Build 20 | 12 20 18 Greatest Support 26 | 26 26 26 Greatest Overweight (x) 1 | . . 1 Average Overweight (x) . | . . . Largest Inventory Capacity 10 | 8 10 10 Average Capacity 9 | 7 9 10 Most Carried 10 | 2 10 10 Average Carried 8 | 1 8 9 Final Capacity 10 | 8 10 10 Final Carried 10 | 2 10 9 Class Distribution -------------------- 95% | Mutant 4% | Scavenger-Mutant Dominant Class ---------------- Mutant | -10/Materials Mutant | -10/Subcaves Resources | -11 -10 -10 ----------- Run | Yrd Mat Sub Matter Collected 757 | 257 490 10 Remotely 425 | 64 351 10 Salvage Created 734 | 64 612 58 Parts 50 | 1 43 6 Haulers Intercepted 2 | . 2 . Recyclers Shooed . | . . . Parts Field Recycled . | . . . Retrieved Matter . | . . . Parts Self-Destructed . | . . . Prevented . | . . . Kills | -11 -10 -10 ------- Run | Yrd Mat Sub Combat Hostiles Destroyed 13 | . 11 2 Guns 11 | . 10 1 Cannons 2 | . 1 1 Classes Destroyed 8 | 1 7 . Worker 1 | . 1 . Hauler 2 | . 2 . Recycler 1 | 1 . . Operator 1 | . 1 . Watcher 2 | . 2 . Swarmer 3 | . 3 . Grunt 6 | . 6 . Subdweller 4 | . 2 2 Best Kill Streak 2 | 1 2 1 Combat Bots Only 2 | . 2 1 Max Kills in Single Turn 2 | 1 2 1 Gunslinging 1 | . 1 . Exploded . | . . . Melee . | . . . Uniques/NPCs Destroyed . | . . . Combat | -11 -10 -10 -------- Run | Yrd Mat Sub Hostile Shots Fired 88 | . 65 23 Missed 25 | . 21 4 Hits 63 | . 44 19 Projectile 63 | . 44 19 Damage Taken 957 | . 502 455 Core 267 | . 120 147 Absorbed by Shields . | . . . Core Remaining (%) 100 | 100 . . Volleys Fired 88 | 5 69 14 Largest 2 | 2 2 2 Hottest 60 | 60 60 50 Shots Fired 169 | 10 136 23 Gun 154 | 10 130 14 Cannon 15 | . 6 9 Launcher . | . . . Special . | . . . Kinetic 152 | 5 124 23 Thermal . | . . . Explosive . | . . . Electromagnetic 17 | 5 12 . Robot Hit Streak 22 | 3 8 22 Robot Miss Streak 5 | 2 5 1 Penetration Max . | . . . Secondary Targets 1 | . 1 . Max Gunslinging Chain 1 | . 1 . Shots Hit Robots 118 | 6 90 22 Core Hits 48 | 2 40 6 Critical Kills 1 | . 1 . Critical Parts Destroyed . | . . . Critical Strikes 1 | . 1 . Destroy 1 | . 1 . Melee Attacks 8 | . 8 . Impact 8 | . 8 . Slashing . | . . . Piercing . | . . . Sneak Attacks . | . . . Combat Hostiles . | . . . Follow-up Attacks . | . . . Damage Inflicted 1176 | 56 854 266 Guns 917 | 56 757 104 Cannons 254 | . 92 162 Explosions . | . . . Melee . | . . . Ramming 5 | . 5 . Kinetic 1023 | 30 727 266 Thermal . | . . . Explosive . | . . . Electromagnetic 148 | 26 122 . Impact . | . . . Slashing . | . . . Piercing . | . . . Highest Corruption . | . . . Average Corruption . | . . . Corruption Purged . | . . . Corruption Blocked . | . . . Overload Shots . | . . . Overflow Damage . | . . . Projectiles . | . . . Explosions . | . . . Melee . | . . . Knockbacks 5 | . 2 3 Impact . | . . . Kinetic 5 | . 2 3 Secondary . | . . . Self-Inflicted Damage 2 | . 2 . Shots . | . . . Rammed 1 | . 1 . Targets Rammed 1 | . 1 . Kicked . | . . . Crushed . | . . . Highest Temperature 85 | 40 85 . Average Temperature 16 | 19 15 . Received Heat Transfer 270 | . 198 72 Siege Activations . | . . . Martial Activations . | . . . Shielding Activations . | . . . Robots Disrupted . | . . . Combat Hostiles . | . . . Robots Corrupted . | . . . Combat Hostiles . | . . . Parts Fried 1 | . 1 . Impact Corruptions . | . . . Robots Melted . | . . . Combat Hostiles . | . . . Parts Melted 1 | . . 1 Heat Transferred . | . . . Parts Sabotaged . | . . . Parts Stolen . | . . . Parts Stripped . | . . . Power Chain Reactions . | . . . Alert | -11 -10 -10 ------- Run | Yrd Mat Sub Maximum Alert Level . | . . . Low Security (%) 100 | 100 100 . Level 1 . | . . . Level 2 . | . . . Level 3 . | . . . Level 4 . | . . . Level 5 . | . . . High Security . | . . . Max Security . | . . . Peak Influence 130 | 5 130 . Initial . | . . . Average 58 | . 63 . Influence Increases 320 | 5 315 . Destroy 0b10 Robot/C 180 | . 180 . Destroy 0b10 Robot/NC 35 | 5 30 . Destroy Leader 48 | . 48 . Successful Hack 24 | . 24 . Destroy Structure 3 | . 3 . Lose Combat Pursuer 30 | . 30 . Influence Decreases 320 | 5 315 . Time Decay 300 | 5 295 . Lost Part 20 | . 20 . Squads Dispatched 2 | . 2 . Investigation 1 | . 1 . Extermination . | . . . Reinforcement 1 | . 1 . Assault . | . . . Garrison . | . . . Intercept . | . . . Searches Triggered . | . . . Construction Impeded . | . . . Haulers Reinforced . | . . . Active Scanning Responses . | . . . Cargo Convoy Interrupts . | . . . Stealth | -11 -10 -10 --------- Run | Yrd Mat Sub Distress Signals 2 | . 2 . Communications Jammed . | . . . Distress Signals . | . . . Times Spotted 22 | . 19 3 Peak Tracking Total 3 | . 3 2 Tactical Retreats 1 | . 1 . Traps | -11 -10 -10 ------- Run | Yrd Mat Sub Traps Triggered 2 | . 2 . Indirectly . | . . . Trap Hack Attempts . | . . . Triggered . | . . . Disarmed . | . . . Reprogrammed . | . . . Reused . | . . . Traps Extracted . | . . . Installed . | . . . Triggered . | . . . Machines | -11 -10 -10 ---------- Run | Yrd Mat Sub Machines Disabled . | . . . Max in Single Turn . | . . . Machines Repaired . | . . . Machines Dismantled . | . . . Machines Sabotaged . | . . . Overloaded Fab Kills . | . . . Hacking | -11 -10 -10 --------- Run | Yrd Mat Sub Machines Accessed 5 | . 5 . Terminals 5 | . 5 . Fabricators . | . . . Repair Stations . | . . . Recycling Units . | . . . Scanalyzers . | . . . Garrison Access . | . . . Total Hacks 17 | . 17 . Successful 13 | . 13 . Failed 4 | . 4 . Catastrophic . | . . . Database Lockouts . | . . . Manual 13 | . 13 . Terminals 17 | . 17 . Fabricators . | . . . Repair Stations . | . . . Recycling Units . | . . . Scanalyzers . | . . . Garrison Access . | . . . Terminal Hacks 4 | . 4 . Prototype ID Bank 1 | . 1 . Recall Investigation 1 | . 1 . Zone Layout 2 | . 2 . Fabricator Hacks . | . . . Repair Station Hacks . | . . . Recycling Unit Hacks . | . . . Scanalyzer . | . . . Garrison Access Hacks . | . . . Unauthorized Hacks 9 | . 9 . Terminals 9 | . 9 . Botnet 5 | . 5 . Skim 4 | . 4 . Fabricators . | . . . Repair Stations . | . . . Recycling Units . | . . . Scanalyzers . | . . . Garrison Access . | . . . Data Cores Recovered 1 | . 1 . Used 1 | . 1 . Hacking Detections 4 | . 4 . Full Trace Events . | . . . Feedback Events . | . . . Feedback Blocked . | . . . Robot Schematics Acquired . | . . . Robots Built . | . . . Authchips . | . . . Time . | . . . Total Robot Build Rating . | . . . Part Schematics Acquired . | . . . Parts Built . | . . . Authchips . | . . . Time . | . . . Total Part Build Rating . | . . . Parts Repaired . | . . . Time . | . . . Parts Recycled . | . . . Recycled Matter . | . . . Retrieved Matter . | . . . Retrieved Components . | . . . Parts Scanalyzed . | . . . Part Schematics Acquired . | . . . Parts Damaged . | . . . Bothacking | -11 -10 -10 ------------ Run | Yrd Mat Sub Used RIF Installer . | . . . Robots Hacked . | . . . Non-combat . | . . . Combat . | . . . Robot Hacks Applied . | . . . Relay Couplers Released . | . . . Fabnet Peak Effective % . | . . . Robots Rewired . | . . . Allies Hacked . | . . . Hacks Repelled . | . . . Allies | -11 -10 -10 -------- Run | Yrd Mat Sub Total Allies . | . . . Largest Group . | . . . Highest-Rated Group . | . . . Highest-Rated Ally . | . . . Total Orders . | . . . Ally Attacks . | . . . Total Damage . | . . . Kills . | . . . Allies Corrupted . | . . . Allies Melted . | . . . Intel | -11 -10 -10 ------- Run | Yrd Mat Sub Active Infowar (turns) 186 | . 186 . T.N.C. 186 | . 186 . Robot Analysis Total . | . . . Derelict Logs Recovered 1 | . . 1 Drone Launches . | . . . Drone Recoveries . | . . . Exploration | -11 -10 -10 ------------- Run | Yrd Mat Sub Turns Passed 939 | 63 748 128 Spaces Moved 661 | 42 525 94 Core 2 | 2 . . Treads . | . . . Legs . | . . . Wheels 659 | 40 525 94 Hover . | . . . Flight . | . . . Fastest Speed 50 | 50 90 90 Average Speed 89 | 87 90 90 Slowest Speed 95 | 90 90 95 Overloaded Moves . | . . . Propulsion Burnouts . | . . . Robots Hopped . | . . . Potential Cave-ins . | . . . Cave-ins Triggered . | . . . Exploration Rate (%) 31 | 3 86 5 Regions Visited 2 Branch Regions 1 Pre-discovered Areas . | . . . Known Exits Taken . | . . . Unknown Exits Taken 2 | 1 1 . Scrap Searched 2 | . . 2 Spaces Dug 4 | . 4 . Terrain Destroyed 4 | . 4 . Melee 4 | . 4 . Projectile . | . . . AOE . | . . . Terrain Rammed . | . . . Walls Destroyed . | . . . Machines Disabled . | . . . Actions | -11 -10 -10 --------- Run | Yrd Mat Sub Total 857 | 55 682 120 Wait 38 | . 31 7 Move 659 | 41 524 94 Hop . | . . . Pick Up 21 | 2 17 2 Fast Attach 13 | 7 6 . Attach 2 | . 1 1 Detach 1 | . 1 . Swap 7 | . 7 . Drop 19 | . 17 2 Fire 88 | 5 69 14 Melee 8 | . 8 . Ram 1 | . 1 . Kick . | . . . Crush . | . . . Escape Stasis . | . . . Rewire . | . . . Trap . | . . . Miscellaneous . | . . . Route ------- -11/Scrapyard -10/Materials (discovered 5 exits: [*Mat x3] / [*Min] / [*Sub]) -10/Subcaves (discovered 1 exit: [*Mat]) History --------- Turn | Location | Event 19 | -11/Scrapyard | Discovered new exit (range 16) 64 | -11/Scrapyard | Entered Materials 228 | -10/Materials | Discovered new exit (range 5) 318 | -10/Materials | Build established: Mutant 425 | -10/Materials | Discovered new exit (range 7) 535 | -10/Materials | Discovered new exit (range 11) 564 | -10/Materials | Derelicts attacked the area 595 | -10/Materials | Discovered new exit (range 13) 709 | -10/Materials | Discovered new exit (range 5) 812 | -10/Materials | Entered Subcaves 837 | -10/Subcaves | Learned Materials stockpile data 891 | -10/Subcaves | Discovered new exit (range 11) 894 | -10/Subcaves | Core integrity fell below 50% 929 | -10/Subcaves | Core integrity fell below 20% 940 | -10/Subcaves | Destroyed by OC-R1M(R) with Subdweller Machine Gun Last Messages --------------- 00852_ Acquired Barrage Gun. 00862_ Subatomizers dissect the Lgt. Assault Rifle. 00891_ EXIT=FOUND 00893_ Com. Wheel destroyed. 00909_ Wheel destroyed. 00910_ MS-FMF(R) destroyed. 00911_ Acquired 10 matter. 00914_ Tractor Beam destroyed. 00919_ AP-L0Y(R) knocked back. 00921_ AP-L0Y(R) affixes Scrap Shield Fragment to Scrap Shield. 00923_ OC-R1M(R) knocked back. 00926_ AP-L0Y(R) affixes Scrap Shield Fragment to Scrap Shield. 00929_ AP-L0Y(R) knocked back. 00929_ Lgt. Cannon destroyed. 00937_ Disposable Heat Sink melted. 00937_ AP-L0Y(R) destroyed. 00938_ Lgt. Ion Engine destroyed. Map ----- +----------------------------------------------------+ | ?????????????????????????????????????????????????? | | ?????????????????????????????????????????????????? | | ?????????????????????????????????????????????????? | | ?????????????????????????????????????????????????? | | ?????????????????????????????????????????????????? | | ?????????????????????????????????????????????????? | | ?????????????????????????????????????????????????? | | ?????????????????????????????????????????????????? | | ?????????????????????????????????????????????????? | | ?????????????????????????????????????????????????? | | ?????????????????????????????????????????????????? | | ?????????????????????????????????????????????????? | | ?????????????????????????????????????????????????? | | ?????????????????????????????????????????????????? | | ?????????????????????????????????????????????????? | | ?????????????????????????????????????????????????? | | ?????????????????????????????????????????????????? | | ????????????????????????????????????????????###### | | ????????????????????????????????????????????#"|% " | | ????????????????????????????????????????????#%[##[ | | ????????????????????????????????????????????#### [ | | ????????????????????????????????????????????###" # | | ????????????????????????????????????????????# ## # | | ????????????????????????????????????????????# " " | | ?????????# ?????????????#####??????????????## | | ?????????# ????????##@% ##?????????????# | | ??????????# < #####& ###???????????# | | ???????????# !%&#### ##??????????### # | | ????????????# !R##??### ######?#####?# # | | ????????????## !% #????## ## ### #### # | | ?????????????# ### ????## ## # # ### | | ?????????????# ???#### ???### ######## ## | | ?????????????#????????## ?????##??????## # | | ???????????????????????? ### #????????????# | | ???????????????????????? ??# #????????????# # # | | ???????????????????????? ?? #????????????### ## | | ???????????????????????? ??? #?????????????# ? | | ???????????????????????? ??? ?????????????# ## | | ???????????????????????? ???? ???????????? ? | | ????????????????????????? ????????????????? #? | | ????????????????????????? #????????????????####? | | ????????????????????????? ??????????????????????? | | ????????????????????????? ???????????????????????? | | ?????????????????????????????????????????????????? | | ?????????????????????????????????????????????????? | | ?????????????????????????????????????????????????? | | ?????????????????????????????????????????????????? | | ?????????????????????????????????????????????????? | | ?????????????????????????????????????????????????? | | ?????????????????????????????????????????????????? | +----------------------------------------------------+ Best States ------------- Heat Dissipation 25 Energy Generation 14 Energy Capacity 160 Matter Stores 300 Matter Capacity 300 Sight Range 16 Terrain Scan Density 10 Evasion (%) 42 Item Schematics ----------------- None Robot Schematics ------------------ None Fabricated ------------ Nothing Repaired ---------- Nothing Alien Tech Used ----------------- None Achievements -------------- None Challenges ------------ None Game ------ Seed MicrowarpRestorationMeganuke Manual? 0 Play Time 00:28:50 Cumulative 42.9 hours Start 2025.08.11 @ 11:38:42 End 2025.08.11 @ 12:19:17 Sessions 1 Manual Loads 0 Difficulty Rogue Special Mode None Game No. 47 Rogue 47 Adventurer 0 Explorer 0 Win Type - Total 0 Types 0/0/0/0/0/0/0/0/0/0 Lore% 11 Gallery% 26 Achievement% 27 Wizard Run 0 Options --------- Layout 1 ASCII 0 Keyboard 0 Movement Mouse Keybinds 0 Fullscreen 1 Font 24/Smallcaps Map View 50x35 Zoom Use 0% Tactical HUD 1 Map Filters NONE Filters NONE Steam 1 RUN: 6483417a-84ef-4450-a186-b94d576beafb